[Event "ChessKid Cup Div-II 2023"]
[Site "Online"]
[Date "2023.05.25"]
[Round "55.1"]
[White "Andreikin, Dmitry"]
[Black "Mamedyarov, Shakhriyar"]
[Result "0-1"]
[ECO "A28"]
[WhiteElo "2729"]
[BlackElo "2738"]
[Annotator "TA"]
[PlyCount "48"]
[EventDate "2023.05.21"]
[EventType "k.o."]
[EventCountry "NET"]
[SourceTitle "playchess.com"]
[Source "ChessBase"]
[SourceQuality "1"]
[TimeControl "900+3"]

{[%evp 9,48,18,14,-8,15,7,13,0,82,93,103,100,99,87,79,18,34,33,54,0,0,0,0,0,0,0,0,-106,-87,-91,-34,-24,-24,-406,-399,-400,-404,-403,-400,-1055,-1010]} 1. c4 {[%emt 0:00:05]} e5 {[%emt 0:00:06]} 2. Nc3 {[%emt 0:00:03]} Nf6 {[%emt 0:00:02]} 3. e3 {[%emt 0:00:01]} d5 {[%emt 0:00:18]} 4. cxd5 {[%emt 0:00:02]} Nxd5 {[%emt 0:00:01]} 5. Nf3 {[%emt 0:00:10]} Nc6 {[%emt 0:00:25]} 6. Qc2 {[%emt 0:00:28] A28: English Opening: Four Knights Variation.} Nb6 $5 {[%emt 0:01:17][%mdl 4] A promising side line.} 7. Bb5 {[%emt 0:00:56]} Bd6 {[%emt 0:00:02]} 8. d4 {[%emt 0:00:19] The position is equal.} exd4 {[%emt 0:01:53]} (8... Bd7 $11) 9. Nxd4 $16 {[%emt 0:00:21]} (9. exd4 $6 O-O $11) 9... O-O {[%emt 0:00:02]} 10. Nxc6 {[%emt 0:00:52]} bxc6 {[%emt 0:00:01]} 11. Bxc6 {[%emt 0:00:00]} Rb8 {[%emt 0:00:22] [#]} 12. Bf3 $146 {[%emt 0:00:19]} (12. b3 $16) ({Predecessor:} 12. b3 Ba6 13. Bb2 Be5 14. Rd1 Qh4 15. g3 Qh5 16. Kd2 Qh6 17. Qe4 Nc4+ 18. Kc2 Nxb2 19. Kxb2 {½-½ Gretarsson,H (2247)-Loftsson,H (2248) Reykjavik-ch 2008 (8)}) 12... Qh4 $11 {[%emt 0:01:49]} 13. b3 {[%emt 0:00:22]} Re8 {[%emt 0:01:50]} 14. Bd2 {[%emt 0:00:04]} (14. h3 $14) 14... Nd7 {[%emt 0:00:46][%cal Bb6d7,Bd7e5,Be5f3][%mdl 32]} 15. Ne4 {[%emt 0:02:36] Nxd6 would be deadly.} Ne5 {[%emt 0:00:23]} 16. Nxd6 {[%emt 0:00:01]} Nxf3+ {[%emt 0:00:06]} 17. gxf3 {[%emt 0:00:00]} cxd6 {[%emt 0:00:01]} 18. Qc4 {[%emt 0:00:15] [#]} (18. Qd3 $11 {keeps the balance.}) 18... Qf6 $1 $17 {[%emt 0:01:04][%csl LRa1,LRf3] Black is more active.} (18... Qxc4 $6 19. bxc4 Bb7 20. Ke2 $11) 19. Rc1 {[%emt 0:01:24]} d5 {[%emt 0:00:37]} (19... Qxf3 $6 20. Rg1 $15) ({Black should play} 19... Bb7 $17 {[%cal Ob8c8] Hoping for ...Rbc8!} 20. Qd3 Rbc8) 20. Qc6 $15 {[%emt 0:01:01][%cal Rc6e8]} (20. Qxd5 $2 {loses.} Bb7 21. Qa5 Rbc8 $19) 20... Be6 $1 $36 {[%emt 0:00:02][%mdl 2048] Black fights for an advantage.} 21. Bc3 $2 {[%emt 0:00:24][%mdl 8192] Loses the game.} (21. Rg1 $11 d4 22. Qc5) 21... Qxf3 $19 {[%emt 0:00:04] ( -> ...Bg4)} 22. Rg1 {[%emt 0:00:13]} Bg4 {[%emt 0:00:05]} 23. Rxg4 {[%emt 0:02:18]} Qxg4 {[%emt 0:00:03]} 24. Qd6 {[%emt 0:00:41]} (24. Rd1 $142 Rbc8 25. Qb5) 24... Qg1+ {[%emt 0:00:15][%mdl 64] Deflection.   Weighted Error Value: White=0.85/Black=0.12 (very precise)} 0-1

[Event "ChessKid Cup Div-II 2023"]
[Site "Online"]
[Date "2023.05.25"]
[Round "55.2"]
[White "Mamedyarov, Shakhriyar"]
[Black "Andreikin, Dmitry"]
[Result "1-0"]
[ECO "A70"]
[WhiteElo "2738"]
[BlackElo "2729"]
[Annotator "TA"]
[PlyCount "77"]
[EventDate "2023.05.21"]
[EventType "k.o."]
[EventCountry "NET"]
[SourceTitle "playchess.com"]
[Source "ChessBase"]
[SourceQuality "1"]
[TimeControl "900+3"]

{[%evp 21,77,59,74,46,45,54,85,32,46,18,34,30,34,29,33,5,48,13,80,27,35,43,44,43,35,0,224,266,322,312,311,316,623,544,535,532,1210,1138,1422,556,6209,6209,5726,5231,4802,1825,29978,29979,29979,29979,29981,29982,29982,29983,29991,29992,29992,29993]} 1. d4 {[%emt 0:00:03]} Nf6 {[%emt 0:00:11]} 2. c4 {[%emt 0:00:02]} c5 {[%emt 0:00:00]} 3. d5 {[%emt 0:00:05]} e6 {[%emt 0:00:01]} 4. Nc3 {[%emt 0:00:06]} exd5 {[%emt 0:00:01]} 5. cxd5 {[%emt 0:00:00]} d6 {[%emt 0:00:01]} 6. e4 {[%emt 0:00:11]} g6 {[%emt 0:00:01]} 7. Nf3 {[%emt 0:00:02]} Bg7 {[%emt 0:00:01]} 8. h3 {[%emt 0:00:05]} O-O {[%emt 0:00:02]} 9. Bd3 {[%emt 0:00:01]} a6 {[%emt 0:00:02]} 10. a4 {[%emt 0:00:02]} Nbd7 {[%emt 0:00:01] 10...Nbd7 scores better than 10...Re8.} 11. O-O {[%emt 0:00:01]} Nh5 {[%emt 0:00:02]} 12. Bg5 {[%emt 0:00:29] A70: Modern Benoni: 6 e4 g6 7 Nf3.} Bf6 {[%emt 0:00:16]} 13. Bh6 {[%emt 0:00:02]} Re8 {[%emt 0:00:08]} 14. a5 $5 {[%emt 0:01:41][%mdl 4] Leaves trodden paths.} ({Better is} 14. Be2 $16) 14... Rb8 $14 {[%emt 0:00:24][%cal Ba8b8,Bb8b6,Bb6b4][%mdl 32] [#]} 15. Re1 $146 {[%emt 0:00:11]} ({Predecessor:} 15. Qd2 Ne5 16. Nxe5 Bxe5 17. Ne2 b5 18. axb6 Rxb6 19. Ra2 Rb4 20. f4 Bh8 21. Kh2 {0-1 Pierrot,J (2442)-Ricardi,P (2500) ARG-ch 86th La Plata 2012 (10)}) 15... b5 {[%emt 0:00:04]} 16. axb6 {[%emt 0:00:01]} Rxb6 {[%emt 0:00:05]} 17. Ra2 {[%emt 0:00:37]} Ne5 {[%emt 0:03:02]} 18. Be2 {[%emt 0:00:08]} (18. Nxe5 {is more complex.} Bxe5 19. Qc1 Qf6 20. Bg5) 18... Rb4 {[%emt 0:01:01]} (18... Nxf3+ {simplifies} 19. Bxf3 Bg5 20. Bxg5 Qxg5 21. Bxh5 Qxh5 22. Qxh5 gxh5 23. f3 f5) 19. Nxe5 {[%emt 0:01:31]} ({Reject} 19. Bxa6 Bxa6 20. Rxa6 Rxb2 $11) (19. Bd2 $5 {[%cal Rf3e5]}) 19... Rxe5 {[%emt 0:00:07]} (19... Bxe5 $11 20. Bxh5 (20. Bxa6 Bxa6 21. Rxa6 Rxb2 $15) 20... Qh4 {[%mdl 64] Pin}) 20. Bxa6 {[%emt 0:00:22]} (20. f4 $16 Rd4 21. Qc2) 20... Bxh3 {[%emt 0:01:20]} 21. gxh3 {[%emt 0:00:17] Bb5 is the strong threat.} Bg5 {[%emt 0:00:01]} 22. Bxg5 {[%emt 0:00:06]} Rxg5+ {[%emt 0:00:00]} 23. Kf1 {[%emt 0:01:08] Re3 would be deadly.} (23. Kh1 $5 Qf6 24. Qe2 $16) 23... Qf6 $2 {[%emt 0:00:36] [#] White now steadily converts the win.} (23... Ng3+ $1 $11 {and Black stays safe.} 24. fxg3 Rxg3) 24. Re3 $1 $18 {[%emt 0:00:02]} Qf4 {[%emt 0:01:06] [#] And now ...Qh2 would win.} 25. Qf3 $1 {[%emt 0:02:39]} Qh2 {[%emt 0:00:04] White must now prevent ...Qg1+.} 26. Ne2 {[%emt 0:00:51] Dodges Qg1+} f5 $2 {[%emt 0:02:43]} (26... Nf6 27. b3 (27. Qxf6 {is a self mate.} Qh1+) 27... Nd7) 27. Bc8 {[%emt 0:01:10][%cal Re4f5]} Rd4 {[%emt 0:00:34][%cal Rd4d1]} 28. Ra1 {[%emt 0:00:17][%cal Re4f5] Prevents Rd1+.} Kg7 {[%emt 0:00:56]} 29. exf5 {[%emt 0:00:34]} Rf4 {[%emt 0:00:17]} 30. Nxf4 {[%emt 0:00:10]} Nxf4 {[%emt 0:00:16][%csl Gh2][%cal Rg5g1] [#]} 31. f6+ $1 {[%emt 0:00:03]} Kxf6 {[%emt 0:00:36]} 32. Bg4 {[%emt 0:00:04] Threatening mate with Ra4.} Rxd5 {[%emt 0:00:29]} 33. Re4 {[%emt 0:00:40]} Rd4 {[%emt 0:00:05]} 34. Rxd4 {[%emt 0:00:15] White mates.} cxd4 {[%emt 0:00:02]} 35. Rd1 {[%emt 0:00:08]} Ke5 {[%emt 0:00:03]} 36. Re1+ {[%emt 0:00:05]} Kf6 {[%emt 0:00:01]} 37. Re4 {[%emt 0:00:02]} Kg5 {[%emt 0:00:01] [#]} 38. Rxf4 $1 {[%emt 0:00:06]} Qxf4 {[%emt 0:00:01] [#]} 39. h4+ $1 {[%emt 0:00:01][%mdl 64] Deflection.   Weighted Error Value: White=0.62/Black=0.88} 1-0

[Event "ChessKid Cup Div-II 2023"]
[Site "Online"]
[Date "2023.05.25"]
[Round "56.1"]
[White "Nguyen, Ngoc Truong Son"]
[Black "Mamedyarov, Shakhriyar"]
[Result "1-0"]
[ECO "D27"]
[WhiteElo "2645"]
[BlackElo "2738"]
[Annotator "TA"]
[PlyCount "73"]
[EventDate "2023.05.21"]
[EventType "k.o."]
[EventCountry "NET"]
[SourceTitle "playchess.com"]
[Source "ChessBase"]
[SourceQuality "1"]
[TimeControl "900+3"]

{[%evp 15,73,32,34,37,54,12,20,16,31,26,28,19,33,26,41,0,15,11,9,10,10,6,8,6,27,23,35,8,9,6,17,6,22,14,55,56,85,86,216,216,306,327,344,293,290,343,340,325,352,346,571,563,524,472,706,700,721,714,783,765]} 1. d4 {[%emt 0:00:06]} Nf6 {[%emt 0:00:09]} 2. Nf3 {[%emt 0:00:02]} d5 {[%emt 0:00:03]} 3. c4 {[%emt 0:00:07]} dxc4 {[%emt 0:00:04]} 4. e3 {[%emt 0:00:05]} e6 {[%emt 0:00:01]} 5. Bxc4 {[%emt 0:00:02]} c5 {[%emt 0:00:01]} 6. O-O {[%emt 0:00:09]} a6 {[%emt 0:00:01]} 7. dxc5 {[%emt 0:00:04]} Bxc5 {[%emt 0:00:02]} 8. Qxd8+ {[%emt 0:00:12]} Kxd8 {[%emt 0:00:00]} 9. Be2 {[%emt 0:00:01] 9.Ne5 is a critical line. D27: Queen's Gambit Accepted: Classical main line: 7 e4!? and 7 a4.} Ke7 {[%emt 0:00:04]} 10. Nfd2 {[%emt 0:00:05]} Rd8 {[%emt 0:00:25] [#]} 11. Nb3 $146 {[%emt 0:00:04] The position is equal.} ({Predecessor:} 11. b3 b6 12. Bf3 Ra7 13. Ne4 Nxe4 14. Bxe4 a5 15. Bb2 f5 16. Bf3 g5 17. h3 Rg8 18. g4 Bb7 19. Kg2 Bxf3+ 20. Kxf3 Nc6 21. Nc3 Ne5+ 22. Ke2 f4 {1-0 Chiku Ratte,O (2367)-Oberoi,S (2283) Washington op 9th 2022 (5)}) 11... Ba7 {[%emt 0:00:32]} 12. Bd2 {[%emt 0:00:42]} Nc6 {[%emt 0:00:22]} 13. Rc1 {[%emt 0:01:33]} Bd7 {[%emt 0:00:54]} 14. Na3 {[%emt 0:00:47]} Rac8 {[%emt 0:00:52]} 15. Na5 {[%emt 0:00:35]} Nxa5 {[%emt 0:01:49]} 16. Bxa5 {[%emt 0:00:05]} Rxc1+ {[%emt 0:00:03]} 17. Rxc1 {[%emt 0:00:02]} Rc8 {[%emt 0:00:01]} 18. Bb4+ {[%emt 0:01:23]} Kd8 {[%emt 0:00:08]} 19. Rxc8+ {[%emt 0:02:20]} Kxc8 {[%emt 0:01:23]} 20. Nc4 {[%emt 0:00:09] And now Nd6+ would win.} Ne8 {[%emt 0:00:01]} 21. g4 {[%emt 0:01:03]} f6 {[%emt 0:00:46]} 22. h4 {[%emt 0:00:38]} Bb5 {[%emt 0:00:14]} 23. b3 {[%emt 0:00:06][%cal Bb2b3,Bb3c4,Bc4c5][%mdl 32]} Kd7 {[%emt 0:00:19]} 24. Bd3 {[%emt 0:00:08]} h6 {[%emt 0:01:08]} 25. Bf8 {[%emt 0:00:17]} Bb8 {[%emt 0:02:32] [#]} 26. Bg6 $1 {[%emt 0:00:13] White is more active.} Bxc4 {[%emt 0:00:05] This move loses the game for Black.} (26... Bc6 $16 {was worth a try.}) 27. bxc4 $16 {[%emt 0:00:08][%mdl 4096] Endgame KBB-KBN} f5 {[%emt 0:00:12]} (27... Kd8 {might work better.} 28. Bxe8 Kxe8 29. Bxg7 h5) 28. gxf5 $18 {[%emt 0:00:21]} exf5 {[%emt 0:00:00]} 29. Bxf5+ {[%emt 0:00:41]} Kd8 {[%emt 0:00:01]} 30. c5 {[%emt 0:00:42] Prevents Bd6.} Be5 {[%emt 0:00:06]} 31. f4 {[%emt 0:00:27]} Bf6 {[%emt 0:00:01]} 32. h5 {[%emt 0:00:21]} Nc7 $2 {[%emt 0:00:14] [#]} (32... Be7 {was called for.}) 33. e4 {[%emt 0:00:19][%cal Be3e4,Be4e5][%mdl 32] White is clearly winning.} Ke8 {[%emt 0:00:14]} 34. Bd6 {[%emt 0:00:01]} Nb5 {[%emt 0:00:00]} (34... Kd8 $142 35. Kf2 Be7) 35. Bc8 {[%emt 0:00:17]} Bc3 {[%emt 0:01:03]} 36. Kg2 {[%emt 0:00:20]} (36. Bxb7 Nxd6 37. cxd6 Bd2 38. Bc6+ (38. Bxa6 Kd7 $16) 38... Kf7 $16) 36... Bb4 {[%emt 0:00:09]} 37. e5 {[%emt 0:00:07] Weighted Error Value: White=0.06 (flawless) /Black=0.30} ({Less strong is} 37. Bxb7 Nxd6 38. cxd6 Bxd6 $18) 1-0

[Event "ChessKid Cup Div-II 2023"]
[Site "Online"]
[Date "2023.05.25"]
[Round "56.2"]
[White "Mamedyarov, Shakhriyar"]
[Black "Nguyen, Ngoc Truong Son"]
[Result "1-0"]
[ECO "D36"]
[WhiteElo "2738"]
[BlackElo "2645"]
[Annotator "TA"]
[PlyCount "49"]
[EventDate "2023.05.21"]
[EventType "k.o."]
[EventCountry "NET"]
[SourceTitle "playchess.com"]
[Source "ChessBase"]
[SourceQuality "1"]
[TimeControl "900+3"]

{[%evp 21,49,24,50,15,48,38,46,57,73,82,92,115,231,229,359,385,368,380,510,512,503,508,653,666,634,434,800,788,775,776]} 1. d4 {[%emt 0:00:03]} Nf6 {[%emt 0:00:07]} 2. c4 {[%emt 0:00:01]} e6 {[%emt 0:00:02]} 3. Nc3 {[%emt 0:00:01]} d5 {[%emt 0:00:00]} 4. cxd5 {[%emt 0:00:03]} exd5 {[%emt 0:00:01]} 5. Bg5 {[%emt 0:00:02]} c6 {[%emt 0:00:03]} 6. e3 {[%emt 0:00:04]} Be7 {[%emt 0:00:20]} 7. Bd3 {[%emt 0:00:03]} O-O {[%emt 0:00:25]} 8. Qc2 {[%emt 0:00:11]} Nbd7 {[%emt 0:00:16]} 9. Nf3 {[%emt 0:00:37]} Re8 {[%emt 0:01:14]} 10. h3 {[%emt 0:00:12]} Nf8 {[%emt 0:01:05]} 11. O-O {[%emt 0:01:03]} Be6 {[%emt 0:01:11]} 12. Rae1 {[%emt 0:00:55] D36: Queen's Gambit Declined: Exchange Variation: Main line (5 Bg5 c6 6 Qc2).} Rc8 {[%emt 0:01:05][%cal Of6e4]} 13. Ne5 {[%emt 0:00:09]} c5 {[%emt 0:00:35]} 14. f4 {[%emt 0:00:13][%cal Bf2f4,Bf4f5,Bf5f6][%mdl 32] [#] White is slightly better.} cxd4 $146 {[%emt 0:02:13]} ({Predecessor:} 14... a6 15. g4 b5 16. Qg2 Qb6 17. f5 Bd7 18. Bxf6 Bxf6 19. Nxd5 Qd6 20. Nxf6+ Qxf6 {1-0 Laurens,J (1790)-Iemmi,C (1690) FRA-ch U14 Girls 2002 (9.3)}) 15. exd4 {[%emt 0:00:00]} Qb6 {[%emt 0:00:02]} 16. Qf2 {[%emt 0:00:09] Black must now prevent f5. White has more active pieces.} Ne4 {[%emt 0:02:03]} 17. Bxe4 $18 {[%emt 0:00:16]} (17. Nxe4 dxe4 18. Bxe4 Bb4 $11) 17... dxe4 {[%emt 0:00:42]} (17... Bxg5 $142 18. Nxd5 (18. Bxd5 Bh4 $16) (18. fxg5 dxe4 19. Rxe4 Ng6 $16) 18... Bh4 19. Nxb6 (19. Qxh4 Bxd5 20. Qf2 Red8 $14) 19... Bxf2+ 20. Rxf2 axb6 21. Bxb7 Rc7) 18. Bxe7 {[%emt 0:00:02]} ({Worse is} 18. Nxe4 f6 19. Bh4 Bxa2 $17) 18... Rxe7 {[%emt 0:00:01]} 19. f5 {[%emt 0:00:34]} ({Not} 19. Rxe4 f6 $16) ({Stronger than} 19. Nxe4 Bxa2 20. Nc3 Bb3 $11) 19... e3 {[%emt 0:02:02]} 20. Rxe3 {[%emt 0:00:06] White is clearly winning.} Bxa2 {[%emt 0:00:02]} 21. Nxa2 {[%emt 0:00:49]} Qxd4 {[%emt 0:00:03]} 22. Rfe1 {[%emt 0:00:07]} Rce8 {[%emt 0:00:26]} 23. Nc3 {[%emt 0:00:13]} h5 {[%emt 0:00:17]} (23... f6 $142 24. Nc6 Rxe3 25. Nxd4 Rxe1+ 26. Kh2 R1e5) 24. f6 {[%emt 0:00:22]} Rxe5 {[%emt 0:00:08]} 25. Rxe5 {[%emt 0:00:02] White took control after the opening.   Weighted Error Value: White=0.22 (precise) /Black=0.58} 1-0

[Event "ChessKid Cup Div-II 2023"]
[Site "Online"]
[Date "2023.05.25"]
[Round "56.3"]
[White "Mamedyarov, Shakhriyar"]
[Black "Nguyen, Ngoc Truong Son"]
[Result "1-0"]
[ECO "D60"]
[WhiteElo "2738"]
[BlackElo "2645"]
[Annotator "TA"]
[PlyCount "53"]
[EventDate "2023.05.21"]
[EventType "k.o."]
[EventCountry "NET"]
[SourceTitle "playchess.com"]
[Source "ChessBase"]
[SourceQuality "1"]
[TimeControl "900+3"]

{[%evp 14,53,16,5,20,13,42,41,28,32,31,20,90,52,52,35,38,20,45,45,58,50,82,83,95,97,164,171,168,164,172,168,162,158,488,480,841,837,830,822,810,797]} 1. d4 {[%emt 0:00:12]} d5 {[%emt 0:02:48]} 2. c4 {[%emt 0:00:04]} c6 {[%emt 0:00:11]} 3. Nf3 {[%emt 0:00:08]} Nf6 {[%emt 0:00:06]} 4. Qb3 {[%emt 0:00:08]} e6 {[%emt 0:00:28]} 5. Bg5 {[%emt 0:00:05]} Be7 {[%emt 0:00:21]} 6. e3 {[%emt 0:00:07]} Nbd7 {[%emt 0:00:17] is now more promising than 6...0-0.} 7. Nc3 {[%emt 0:00:08]} O-O {[%emt 0:00:46]} 8. Be2 {[%emt 0:00:13]} h6 {[%emt 0:00:15] D60: Queen's Gambit Declined: Classical: Unusual White 7th moves.} 9. Bh4 {[%emt 0:00:08] [#]} a5 $146 {[%emt 0:00:07][%cal Oa5a4]} ({Predecessor:} 9... a6 10. O-O b6 11. Rad1 Bb7 12. Rfe1 dxc4 13. Bxc4 b5 14. Bf1 Qe8 15. e4 c5 {0-1 Epishin,V (2517)-Shimanov,A (2581) St Petersburg Blitz 2021 (10)}) 10. O-O {[%emt 0:00:17]} b6 {[%emt 0:01:00] White is slightly better.} 11. cxd5 {[%emt 0:00:12]} Nxd5 {[%emt 0:00:15]} 12. Bg3 {[%emt 0:00:30]} N7f6 {[%emt 0:00:35]} (12... Bb7 $11) 13. Rac1 {[%emt 0:00:24] White is more active.} Bb7 {[%emt 0:00:09]} 14. Nxd5 {[%emt 0:00:17]} Nxd5 {[%emt 0:00:34]} 15. a3 {[%emt 0:00:19]} Bd6 {[%emt 0:01:13]} 16. Rfd1 {[%emt 0:00:18]} a4 {[%emt 0:00:45]} 17. Qc2 {[%emt 0:00:07]} Bxg3 {[%emt 0:00:08]} 18. hxg3 {[%emt 0:00:03]} Qe7 {[%emt 0:00:04][%cal Oc6c5]} 19. Ne5 {[%emt 0:00:22]} Rfc8 {[%emt 0:00:05] [#]} (19... Qd6 $16 {might work better.}) 20. Bh5 $1 $18 {[%emt 0:00:04]} Rf8 {[%emt 0:01:02]} 21. Nxc6 {[%emt 0:00:49]} Qg5 {[%emt 0:00:04] [#]} 22. Qe2 {[%emt 0:00:04]} Ba6 {[%emt 0:00:13]} 23. Qg4 {[%emt 0:00:26]} Qf6 $2 {[%emt 0:00:49] This move loses the game for Black.} (23... Rfe8 $16 24. Qxg5 hxg5) 24. e4 {[%emt 0:00:22][%cal Be3e4,Be4e5][%mdl 32] White is clearly winning.} Nc7 {[%emt 0:00:05]} (24... g6 $142 25. exd5 exd5) 25. e5 {[%emt 0:00:06]} Qg5 {[%emt 0:00:06]} 26. Qxg5 {[%emt 0:00:04][%mdl 64] Remove Defender} hxg5 {[%emt 0:00:03]} 27. Ne7+ {[%emt 0:00:04][%mdl 64] Discovered Attack.   Weighted Error Value: White=0.04 (flawless) /Black=0.48} 1-0